bitfinex/quotes_SOLUSD_20240829
["timestamp","ask_amount","ask_price","bid_price","bid_amount"]
[1724899704334,6.941,144.07,144.06,15.8369]
[1724899704622,65.25098,144.07,144.02,15.9948]
[1724899704800,0.12549,144.06,144.02,15.9948]
[1724899705815,45.25098,144.07,144.02,15.9948]
[1724899709210,0.12549,144.07,144.02,15.9948]
[1724899709808,20.0,144.08,144.02,28.98307417]
[1724899710006,0.12549,144.09,144.02,28.98307417]
[1724899710200,45.25098,144.09,144.02,28.98307417]
[1724899710407,20.0,144.08,144.02,28.98307417]
[1724899710927,0.25098,144.09,144.02,28.98307417]
[1724899710928,20.25098,144.09,144.02,28.98307417]
[1724899711411,20.25098,144.09,144.03,0.43891665]
[1724899712226,0.12549,144.09,144.04,12.98827417]
[1724899712608,45.0,144.1,144.04,12.98827417]
[1724899713911,0.12549,144.09,144.04,12.98827417]
[1724899714629,45.0,144.1,144.04,12.98827417]
[1724899714938,0.12549,144.11,144.05,15.0773]
[1724899715107,65.25098,144.12,144.05,16.24224587]
[1724899715303,20.25098,144.12,144.05,16.24224587]
[1724899715619,0.25098,144.12,144.06,19.36287417]
[1724899715810,0.25098,144.12,144.06,20.57291308]
[1724899716814,20.12549,144.12,144.06,20.57291308]
[1724899717023,0.12549,144.12,144.06,20.57291308]
[1724899717332,20.12549,144.12,144.06,20.57291308]
[1724899718221,0.12549,144.12,144.06,20.57291308]
[1724899720616,20.0,144.14,144.06,20.57291308]
[1724899720942,0.12549,144.13,144.06,20.57291308]
[1724899722031,0.12549,144.13,144.06,6.3746]
[1724899722244,45.25098,144.13,144.06,6.3746]
[1724899723234,52.18918,144.13,144.06,6.3746]
[1724899730142,45.25098,144.13,144.06,19.36287417]
[1724899730438,45.25098,144.13,144.07,15.9048]
[1724899730439,0.12549,144.13,144.07,15.9048]
[1724899731819,20.0,144.14,144.07,15.9048]
[1724899732237,20.0,144.14,144.08,12.98827417]
[1724899732442,20.12549,144.15,144.08,12.98827417]
[1724899732626,0.25098,144.14,144.08,12.98827417]
[1724899733227,6.9363,144.17,144.08,12.98827417]
[1724899733438,0.04727233,144.19,144.1,6.0084]
[1724899733439,12.98827417,144.19,144.1,6.0084]
[1724899733734,6.9363,144.17,144.1,6.0084]
[1724899734744,45.12549,144.16,144.1,6.0084]
[1724899734928,0.12549,144.15,144.1,6.0084]
[1724899737134,13.11376417,144.15,144.1,6.0084]
[1724899737337,45.12549,144.14,144.09,15.3434]
[1724899737638,0.12549,144.13,144.09,15.3434]
[1724899738643,7.06369,144.13,144.09,15.3434]
[1724899738828,0.12549,144.12,144.09,15.3434]
[1724899739824,0.25098,144.13,144.09,15.3434]
[1724899742340,6.9391,144.11,144.09,15.3434]
[1724899742549,45.25098,144.1,144.05,15.5355]
[1724899743253,52.19098,144.1,144.05,15.5355]
[1724899743427,20.0,144.09,144.05,15.5355]
[1724899743749,45.25098,144.08,144.05,15.5355]
[1724899749434,12.98827417,144.07,144.01,16.4057]
[1724899749756,6.9421,144.05,144.01,16.4057]
[1724899750053,0.12549,144.04,144.01,16.4057]
[1724899750833,0.12549,144.06,144.03,12.98827417]
[1724899751044,0.12549,144.07,144.03,12.98827417]
[1724899751255,65.25098,144.07,144.03,12.98827417]
[1724899752133,20.12549,144.07,144.03,12.98827417]
[1724899752461,6.9401,144.1,144.03,12.98827417]
[1724899752462,20.0,144.09,144.03,12.98827417]
[1724899753141,26.9401,144.09,144.03,12.98827417]
[1724899753759,45.12549,144.08,144.03,12.98827417]
[1724899754065,0.12549,144.07,144.01,16.4057]
[1724899754351,27.06689,144.07,144.01,16.4057]
[1724899754663,45.12549,144.06,144.01,16.4057]
[1724899754862,0.12549,144.05,144.01,16.4057]
[1724899755043,0.12549,144.05,144.01,29.39397417]
[1724899758341,0.12549,144.05,144.01,16.4057]
[1724899765350,32.98827417,144.07,144.01,29.39397417]
[1724899765351,20.0,144.07,144.01,29.39397417]
[1724899765555,27.06619,144.08,144.01,29.39397417]
[1724899771572,6.2829,144.12,144.03,12.98827417]
[1724899771779,12.98827417,144.13,144.04,22.9689]
[1724899771780,6.9385,144.13,144.04,22.9689]
[1724899772375,6.9387,144.12,144.04,22.9689]
[1724899772972,0.12549,144.11,144.04,22.9689]
[1724899773279,45.25098,144.11,144.05,12.98827417]
[1724899773457,0.25098,144.11,144.05,12.98827417]
[1724899773781,20.25098,144.11,144.05,12.98827417]
[1724899774959,27.19018,144.11,144.04,22.9689]
[1724899775175,45.0,144.1,144.04,22.9689]
[1724899775380,0.12549,144.09,144.04,22.9689]
[1724899782090,20.25098,144.09,144.04,16.575]
[1724899782266,45.0,144.08,144.04,16.575]
[1724899782460,0.12549,144.07,144.04,16.575]
[1724899782661,0.25098,144.07,144.04,16.575]
[1724899784979,45.0,144.08,144.04,16.575]
[1724899785288,20.12549,144.09,144.04,16.575]
[1724899785593,0.12549,144.08,144.04,16.575]
[1724899793698,45.25098,144.08,144.04,16.575]
[1724899798904,20.0,144.07,144.04,16.575]
[1724899799102,45.25098,144.06,144.04,16.575]
[1724899799292,45.25098,144.06,144.0,22.6066]
[1724899799614,52.19248,144.06,144.0,22.6066]
[1724899800313,6.9421,144.05,144.0,22.6066]
[1724899800494,45.25098,144.04,144.0,22.6066]
[1724899800692,6.9434,144.02,144.0,16.2254]
[1724899800895,6.9434,144.02,143.96,22.3971]
[1724899800896,0.12549,144.01,143.96,22.3971]
[1724899801094,45.25098,144.01,143.96,22.3971]
[1724899801697,20.0,144.03,143.99,12.98827417]
[1724899801999,402.58827417,144.07,144.01,12.98827417]
[1724899802000,20.0,144.06,144.01,12.98827417]
[1724899802199,389.6,144.07,144.01,20.81930209]
[1724899802200,389.72549,144.07,144.01,20.81930209]
[1724899802410,12.98827417,144.11,144.01,20.81930209]
[1724899802706,6.9404,144.09,144.01,20.81930209]
[1724899802907,6.9404,144.09,144.01,19.43067417]
[1724899803127,6.9407,144.08,144.01,19.43067417]
[1724899803418,20.0,144.07,144.01,19.43067417]
[1724899804501,52.19268,144.06,144.01,6.4424]
[1724899809316,45.25098,144.06,144.0,15.8864]
[1724899809505,20.0,144.05,144.0,15.8864]
[1724899809709,45.25098,144.04,144.0,15.8864]
[1724899810325,52.19358,144.04,144.0,15.8864]
[1724899810825,6.9433,144.03,144.0,15.8864]
[1724899811125,52.19468,144.02,144.0,15.8864]
[1724899811311,0.12549,144.01,143.97,22.3328]
[1724899811632,45.25098,144.01,143.97,22.3328]
[1724899812427,52.19518,144.01,143.97,22.3328]
[1724899813606,45.25098,144.01,143.97,22.3328]
[1724899813814,0.25098,144.01,143.97,22.3328]
[1724899814012,20.25098,144.01,143.97,22.3328]
[1724899814823,6.9446,144.0,143.97,15.9538]
[1724899815012,45.25098,143.99,143.97,15.9538]
[1724899817304,0.25098,143.99,143.97,15.9538]
[1724899818730,0.25098,143.99,143.95,16.0173]
[1724899818913,17.3582,144.03,143.85,51.95309668]
[1724899818914,7.07129,143.98,143.92,16.0173]
[1724899819115,65.12549,143.97,143.92,16.0173]
[1724899819311,0.12549,143.96,143.92,16.0173]
[1724899820113,20.12549,143.97,143.92,29.00557417]
[1724899820321,6.945,143.99,143.94,12.98827417]
[1724899820629,20.25098,143.98,143.94,12.98827417]
[1724899821334,23.46597417,144.06,143.97,15.6919]
[1724899821518,6.9438,144.02,143.97,15.6919]
[1724899821710,45.12549,144.01,143.97,15.6919]
[1724899823412,0.12549,144.01,143.97,15.6919]
[1724899823641,6.9431,144.03,143.98,12.98827417]
[1724899823932,20.0,144.02,143.98,12.98827417]
[1724899824911,0.12549,144.01,143.98,12.98827417]
[1724899825731,0.25098,144.02,143.98,12.98827417]
[1724899826943,20.0,144.03,144.0,12.98827417]
[1724899827112,20.0,144.08,144.0,12.98827417]
[1724899827535,6.9416,144.06,144.0,12.98827417]
[1724899828128,6.942,144.05,144.0,12.98827417]
[1724899828434,0.12549,144.04,144.0,12.98827417]
[1724899828809,20.12549,144.04,144.0,12.98827417]
[1724899829106,0.12549,144.04,144.0,12.98827417]
[1724899829326,20.12549,144.04,144.0,12.98827417]
[1724899830336,20.0,144.05,144.01,21.61]
[1724899830733,20.12549,144.06,144.01,21.61]
[1724899833027,27.06699,144.06,144.01,21.61]
[1724899833331,0.12549,144.05,144.01,21.61]
[1724899834346,45.12549,144.05,144.01,21.61]
[1724899834952,0.12549,144.04,144.01,21.61]
[1724899836146,0.12549,144.04,143.97,22.2369]
[1724899836348,6.9435,144.02,143.97,22.2369]
[1724899836546,20.25098,144.01,143.97,22.2369]
[1724899836740,20.12549,144.01,143.97,22.2369]
[1724899837157,0.12549,144.01,143.97,22.2369]
[1724899843440,45.12549,144.05,143.98,14.20350078]
[1724899843649,0.12549,144.04,143.98,12.98827417]
[1724899843841,0.25098,144.05,143.98,12.98827417]
[1724899844751,7.19338,144.05,143.98,12.98827417]
[1724899844968,65.0,144.04,143.98,12.98827417]
[1724899845140,0.25098,144.03,143.98,12.98827417]
[1724899850656,0.25098,144.03,143.97,22.2369]
[1724899854646,7.19398,144.03,143.97,22.2369]
[1724899854858,65.0,144.02,143.97,22.2369]
[1724899855047,0.25098,144.01,143.97,22.2369]
[1724899856251,0.12549,144.01,143.97,22.2369]
[1724899856469,20.0,144.02,143.98,12.98827417]
[1724899856648,20.12549,144.03,143.98,12.98827417]
[1724899862658,45.12549,144.02,143.97,22.2369]
[1724899862854,0.12549,144.01,143.97,22.2369]
[1724899864957,27.06949,144.01,143.97,16.1208]
[1724899865165,45.12549,144.0,143.97,16.1208]
[1724899865360,0.12549,143.99,143.97,16.1208]
[1724899868570,45.12549,144.0,143.97,16.1208]
[1724899868571,0.12549,144.0,143.97,16.1208]
[1724899868777,0.12549,144.0,143.97,29.10907417]
[1724899869272,0.25098,144.01,143.97,29.10907417]
[1724899869970,20.0,144.02,143.97,29.10907417]
[1724899870173,20.0,144.03,143.97,29.10907417]
[1724899871371,0.12549,144.02,143.97,29.10907417]
[1724899871775,0.12549,144.02,143.97,16.1208]
[1724899872081,45.25098,144.02,143.97,16.1208]
[1724899872258,20.0,144.01,143.97,16.1208]
[1724899872459,0.12549,144.0,143.97,16.1208]
[1724899876353,0.12549,144.02,143.97,29.10907417]
[1724899876577,6.9416,144.06,143.99,19.32127417]
[1724899876777,20.0,144.05,143.99,19.32127417]
[1724899877878,15.23907268,144.1,144.01,12.98827417]
[1724899878071,34.51330239,144.11,144.01,12.98827417]
[1724899878254,12.98827417,144.09,144.01,12.98827417]
[1724899878460,12.98827417,144.09,144.0,15.4613]
[1724899878658,12.98827417,144.07,144.0,15.4613]
[1724899879077,6.9415,144.06,144.0,15.4613]
[1724899879385,20.25098,144.05,144.0,15.4613]
[1724899880182,0.25098,144.05,144.0,15.4613]
[1724899881584,0.25098,144.05,144.0,28.44957417]
[1724899881794,20.0,144.07,144.0,28.44957417]
[1724899882005,0.25098,144.06,144.0,28.44957417]
[1724899884785,6.9425,144.04,144.0,15.4613]
[1724899884985,20.25098,144.03,144.0,15.4613]
[1724899885581,0.25098,144.03,144.0,15.4613]
[1724899886977,20.0,144.04,144.0,15.4613]
[1724899887169,20.12549,144.05,144.0,15.4613]
[1724899887369,0.12549,144.04,144.0,15.4613]
[1724899887775,52.06829,144.04,144.0,15.4613]
[1724899888001,20.12549,144.03,144.0,15.4613]
[1724899890779,0.12549,144.02,144.0,15.4613]
[1724899890993,20.12549,144.03,144.0,15.4613]
[1724899893398,0.12549,144.02,144.0,15.4613]
[1724899895881,20.12549,144.03,144.0,15.4613]
[1724899897207,45.12549,144.02,144.0,15.4613]
[1724899897391,0.12549,144.01,144.0,15.4613]
[1724899901108,7.06939,144.01,143.97,16.2625]
[1724899901312,45.12549,144.0,143.97,16.2625]
[1724899901602,20.05876417,143.99,143.93,15.9632]
[1724899901804,45.12549,143.98,143.93,15.9632]
[1724899902014,0.12549,143.97,143.93,15.9632]
[1724899902305,20.12549,143.97,143.93,15.9632]
[1724899909602,0.12549,143.96,143.93,15.9632]
[1724899913297,7.07179,143.96,143.9,12.98827417]
[1724899913505,20.12549,143.95,143.89,16.08]
[1724899919302,20.12549,143.95,143.9,14.37806009]
[1724899919512,0.12549,143.95,143.9,12.98827417]
[1724899921225,0.12549,143.95,143.89,16.08]
[1724899922231,45.12549,143.95,143.86,16.4551]
[1724899922404,6.9479,143.93,143.86,16.4551]
[1724899922600,65.25098,143.92,143.86,16.4551]
[1724899923109,65.25098,143.92,143.88,6.9498]
[1724899924823,72.19928,143.92,143.87,6.9505]
[1724899925028,6.9498,143.89,143.86,16.4551]
[1724899925208,0.12549,143.88,143.86,6.9511]
[1724899925922,0.25098,143.89,143.86,6.9511]
[1724899926231,0.12549,143.89,143.88,6.9502]
[1724899926521,20.0,143.91,143.88,6.9502]
[1724899926823,0.12549,143.9,143.88,6.9502]
[1724899927425,20.0,143.91,143.86,12.98827417]
[1724899927625,6.9471,143.95,143.9,6.9492]
[1724899927831,45.0,143.94,143.9,6.9492]
[1724899928825,0.25098,143.93,143.9,6.9492]
[1724899929140,0.25098,143.93,143.89,6.9496]
[1724899929319,20.25098,143.93,143.89,6.9496]
[1724899929515,45.0,143.92,143.89,6.9496]
[1724899929716,0.25098,143.91,143.89,6.9496]
[1724899932036,0.25098,143.91,143.9,6.9492]
[1724899932245,0.12549,143.91,143.9,6.9492]
[1724899939325,26.69828,143.94,143.9,6.9492]
[1724899939648,45.0,143.93,143.91,6.9486]
[1724899939937,19.75098,143.94,143.84,6.4849]
[1724899939938,19.75098,143.94,143.89,12.98827417]
[1724899940146,16.9812,143.97,143.89,12.98827417]
[1724899940347,45.0,143.96,143.89,12.98827417]
[1724899941445,20.12549,143.95,143.92,6.9479]
[1724899941651,45.12549,143.94,143.92,6.9479]
[1724899941944,20.12549,143.93,143.92,6.9479]
[1724899944527,20.0,143.93,143.92,6.9479]
[1724899945855,6.9453,143.99,143.94,6.9469]
[1724899946032,45.25098,143.98,143.94,6.9469]
[1724899946359,23.5556,144.01,143.97,6.9458]
[1724899946931,16.6116,144.01,143.97,6.9458]
[1724899947246,6.9435,144.02,143.97,6.9458]
[1724899947451,6.9435,144.02,143.95,12.98827417]
[1724899948439,20.0,144.01,143.95,12.98827417]
[1724899949640,0.12549,144.0,143.95,12.98827417]
[1724899951644,0.12549,144.0,143.97,12.98827417]
[1724899952046,45.25098,144.01,143.97,12.98827417]
[1724899952235,20.0,144.0,143.97,12.98827417]
[1724899956450,20.0,144.0,143.93,15.1369]
[1724899956672,12.98827417,143.98,143.93,15.1369]
[1724899956849,12.98827417,143.98,143.89,12.98827417]
[1724899956850,65.25098,143.97,143.89,15.3373]
[1724899957548,6.9468,143.95,143.89,15.3373]
[1724899957757,72.19828,143.94,143.89,15.3373]
[1724899957942,0.12549,143.93,143.89,15.3373]
[1724899958345,0.12549,143.93,143.9,6.9491]
[1724899963160,395.82,143.99,143.91,12.98827417]
[1724899963357,395.82,143.99,143.94,6.9473]
[1724899964135,6.9454,143.98,143.94,6.9473]
[1724899964354,20.0,143.97,143.91,12.98827417]
[1724899964540,45.12549,143.96,143.91,12.98827417]
[1724899964740,0.12549,143.95,143.91,12.98827417]
[1724899965456,20.0,143.97,143.91,12.98827417]
[1724899966844,0.12549,143.96,143.91,12.98827417]
[1724899968286,392.37898772,144.04,143.93,12.98827417]
[1724899968462,30.34407417,144.05,143.95,12.98827417]
[1724899968666,6.9431,144.03,143.95,12.98827417]
[1724899969252,16.8489,144.06,143.96,1.38923967]
[1724899969543,6.9423,144.05,143.97,12.98827417]
[1724899970751,20.0,144.04,143.98,16.2767]
[1724899971152,45.12549,144.03,143.98,16.2767]
[1724899971355,20.0,144.02,143.98,16.2767]
[1724899971552,0.12549,144.01,143.98,16.2767]
[1724899971756,20.0,144.02,143.98,16.2767]
[1724899973278,419.94027417,144.08,143.99,12.98827417]
[1724899973279,389.6,144.08,143.99,12.98827417]
[1724899973482,30.00977417,144.1,143.99,12.98827417]
[1724899973658,17.0215,144.1,143.99,12.98827417]
[1724899973981,30.00977417,144.1,144.01,12.98827417]
[1724899974188,6.9406,144.08,144.01,12.98827417]
[1724899974860,0.12549,144.07,144.01,12.98827417]
[1724899975060,45.25098,144.07,144.01,12.98827417]
[1724899975468,20.0,144.06,144.01,12.98827417]
[1724899975662,0.12549,144.05,144.01,12.98827417]
[1724899980465,0.25098,144.05,144.01,12.98827417]
[1724899984503,45.25098,144.05,143.98,22.4285]
[1724899984799,20.0,144.04,143.98,22.4285]
[1724899984979,45.12549,144.03,143.98,22.4285]
[1724899985297,0.12549,144.02,143.98,22.4285]
[1724899987498,0.12549,144.02,143.99,12.98827417]
[1724899988498,0.12549,144.03,143.99,12.98827417]
[1724899989098,45.25098,144.03,143.99,12.98827417]
[1724899993308,0.12549,144.03,143.99,12.98827417]
[1724899995117,20.0,144.06,143.99,12.98827417]
[1724899995318,45.25098,144.05,144.01,12.98827417]
[1724899997803,45.25098,144.05,143.99,12.98827417]
[1724899999913,45.25098,144.05,144.01,12.98827417]
[1724900001917,6.9405,144.09,144.01,12.98827417]
[1724900002225,6.9402,144.09,144.03,12.98827417]
[1724900002413,325.03898888,144.12,144.03,12.98827417]
[1724900002712,309.96949455,144.12,144.03,28.92227417]
[1724900002915,6.9401,144.09,144.03,28.92227417]
[1724900003318,65.0,144.08,144.03,28.92227417]
[1724900003798,45.0,144.08,144.03,28.92227417]
[1724900004000,0.25098,144.07,144.03,28.92227417]
[1724900006595,0.25098,144.07,144.03,15.934]
[1724900007897,6.9416,144.06,144.03,15.934]
[1724900008120,45.25098,144.05,144.03,15.934]
[1724900008316,0.25098,144.07,144.03,15.934]
[1724900011202,7.19238,144.07,144.03,15.934]
[1724900011403,45.0,144.06,144.03,15.934]
[1724900011702,0.25098,144.05,144.03,15.934]
[1724900016627,7.19308,144.05,143.99,15.193]
[1724900016801,45.0,144.04,143.99,28.18127417]
[1724900017006,0.25098,144.03,143.99,28.18127417]
[1724900017218,0.12549,144.03,143.99,28.18127417]
[1724900017534,45.12549,144.04,143.99,28.18127417]
[1724900028133,6.9431,144.03,143.99,15.193]
[1724900028440,45.25098,144.02,143.99,15.193]
[1724900028736,0.25098,144.02,143.99,15.193]
[1724900028925,0.12549,144.01,143.99,15.193]
[1724900029124,0.25098,144.03,143.99,15.193]
[1724900032652,7.19418,144.03,143.99,15.193]
[1724900032832,45.0,144.02,143.99,15.193]
[1724900033033,0.25098,144.01,143.99,15.193]
[1724900038857,27.19498,144.01,143.96,15.6563]
[1724900039040,45.0,144.0,143.96,15.6563]
[1724900039351,0.12549,143.99,143.96,15.6563]
[1724900042737,0.25098,143.99,143.96,15.6563]
[1724900042936,7.19588,143.99,143.96,15.6563]
[1724900043132,45.0,143.98,143.96,15.6563]
[1724900043341,0.12549,143.97,143.96,15.6563]
[1724900050766,0.25098,143.97,143.96,15.6563]
[1724900058388,26.9441,144.01,143.96,15.6563]
[1724900058669,6.9435,144.02,143.97,12.98827417]
[1724900059169,6.9435,144.02,143.96,15.6563]
[1724900059775,45.12549,144.01,143.96,15.6563]
[1724900059975,0.12549,144.0,143.96,15.6563]
[1724900062971,0.12549,144.0,143.97,12.98827417]
[1724900064271,20.25098,144.01,143.97,12.98827417]
[1724900065982,0.25098,144.01,143.97,12.98827417]
[1724900071971,0.12549,144.01,143.99,12.98827417]
[1724900072194,6.9419,144.06,144.0,16.15]
[1724900072495,65.25098,144.05,144.0,16.15]
[1724900072687,72.19308,144.05,144.0,16.15]
[1724900083405,65.25098,144.05,144.0,16.15]
[1724900085596,72.19308,144.05,144.0,16.15]
[1724900093091,65.25098,144.05,144.0,16.15]
[1724900103026,72.19298,144.05,144.0,16.15]
[1724900104230,6.9426,144.04,144.0,16.15]
[1724900104538,45.25098,144.03,144.0,16.15]
[1724900104837,45.12549,144.02,143.97,16.0144]
[1724900105027,0.12549,144.01,143.97,16.0144]
[1724900106110,7.06949,144.01,143.97,16.0144]
[1724900106417,45.12549,144.0,143.97,16.0144]
[1724900106726,0.12549,143.99,143.97,16.0144]
[1724900108716,0.12549,143.99,143.93,22.8129]
[1724900109717,0.12549,143.99,143.94,12.98827417]
[1724900114321,0.12549,143.99,143.93,22.8129]
[1724900114718,7.07059,143.99,143.93,22.8129]
[1724900114941,45.12549,143.98,143.93,22.8129]
[1724900115249,0.12549,143.97,143.93,22.8129]
[1724900117236,0.12549,143.97,143.93,16.2183]
[1724900123447,20.12549,143.97,143.93,16.2183]
[1724900123646,45.12549,143.96,143.93,16.2183]
[1724900123847,0.12549,143.95,143.93,16.2183]
[1724900130248,0.12549,143.95,143.9,19.49057417]
[1724900130649,0.12549,143.95,143.9,6.5023]
[1724900130849,0.12549,143.95,143.9,19.49057417]
[1724900136774,0.12549,143.95,143.9,6.5023]
[1724900136971,0.12549,143.95,143.89,28.63597417]
[1724900138000,0.12549,143.95,143.89,15.6477]
[1724900138200,20.12549,143.95,143.86,35.91317417]
[1724900138501,45.12549,143.94,143.86,35.91317417]
[1724900138801,0.12549,143.93,143.86,35.91317417]
[1724900139185,0.12549,143.93,143.9,6.9491]
[1724900140298,7.07359,143.93,143.89,6.9496]
[1724900140491,45.0,143.92,143.89,6.9496]
[1724900140692,0.25098,143.91,143.89,6.9496]
[1724900141289,0.12549,143.91,143.89,6.9496]
[1724900141970,0.12549,143.91,143.9,6.9492]
[1724900151016,390.81084256,143.98,143.9,12.98827417]
[1724900151226,390.81084256,143.98,143.87,6.50256393]
[1724900151227,389.6,143.98,143.92,12.98827417]
[1724900152511,0.25098,143.97,143.92,12.98827417]
[1724900158422,389.6,143.98,143.94,12.98827417]
[1724900158730,389.6,143.98,143.94,29.34847417]
[1724900160655,389.6,143.98,143.95,1.38930555]
[1724900161547,389.6,143.98,143.94,29.34847417]
[1724900163251,0.12549,143.99,143.94,29.34847417]
[1724900163625,20.0,144.01,143.94,29.34847417]
[1724900163626,45.25098,144.0,143.94,29.34847417]
[1724900170166,26.9442,144.01,143.96,12.98827417]
[1724900170167,20.0,144.01,143.96,12.98827417]
[1724900170377,13.3104,144.03,143.96,12.98827417]
[1724900170677,20.0,144.02,143.96,12.98827417]
[1724900171035,26.9435,144.02,143.96,12.98827417]
[1724900171550,45.25098,144.01,143.96,12.98827417]
[1724900174759,44.75098,144.01,143.96,12.98827417]
[1724900176974,0.25098,144.0,143.96,12.98827417]
[1724900177763,0.12549,144.0,143.96,12.98827417]
[1724900180282,6.9421,144.05,143.98,12.98827417]
[1724900180580,20.0,144.04,143.98,28.02887417]
[1724900181760,45.0,144.03,143.98,28.02887417]
[1724900181979,0.12549,144.02,143.98,28.02887417]
[1724900182376,45.0,144.03,143.98,28.02887417]
[1724900182698,20.0,144.04,144.0,12.98827417]
[1724900183896,0.12549,144.03,144.0,12.98827417]
[1724900185698,45.25098,144.03,143.98,28.02887417]
[1724900192476,0.12549,144.03,143.98,28.02887417]
[1724900192895,45.25098,144.04,143.98,28.02887417]
[1724900193100,20.0,144.05,144.0,12.98827417]
[1724900193473,20.0,144.07,144.0,12.98827417]
[1724900194283,26.9411,144.07,144.0,12.98827417]
[1724900194495,45.25098,144.06,144.0,12.98827417]
[1724900194680,20.0,144.05,144.0,12.98827417]
[1724900194874,0.12549,144.04,144.0,12.98827417]
[1724900195108,0.12549,144.04,143.98,15.0406]
[1724900195283,45.25098,144.04,143.98,28.02887417]
[1724900205628,45.25098,144.04,143.98,15.0406]
[1724900205907,45.25098,144.04,143.99,12.98827417]
[1724900211304,0.12549,144.04,143.99,12.98827417]
[1724900211816,45.25098,144.05,143.99,12.98827417]
[1724900215412,45.25098,144.05,143.98,15.0406]
[1724900215413,45.25098,144.05,144.01,12.98827417]
[1724900215622,0.12549,144.05,144.01,12.98827417]
[1724900216029,45.25098,144.06,144.01,12.98827417]
[1724900220225,0.12549,144.06,144.01,12.98827417]
[1724900220730,45.25098,144.07,144.01,12.98827417]
[1724900223315,45.25098,144.07,144.03,12.98827417]
[1724900240843,0.25098,144.07,144.03,12.98827417]
[1724900243344,6.0087,144.06,143.98,15.0406]
[1724900243554,45.25098,144.05,144.0,12.98827417]
[1724900247063,45.25098,144.05,143.98,15.0406]
[1724900247248,45.25098,144.05,143.98,28.02887417]
[1724900247567,45.25098,144.05,144.0,12.98827417]
[1724900255779,0.25098,144.05,144.0,12.98827417]
[1724900255967,20.25098,144.05,144.0,12.98827417]
[1724900256278,20.12549,144.05,144.0,12.98827417]
[1724900280313,20.0,144.05,144.0,12.98827417]
[1724900280611,16.8407,144.09,144.02,12.98827417]
[1724900280800,16.8407,144.09,144.04,12.98827417]
[1724900281916,45.12549,144.08,144.04,12.98827417]
[1724900282122,0.12549,144.07,144.04,12.98827417]
[1724900285312,1.20976331,144.16,144.06,64.94137085]
[1724900285521,6.6099,144.22,144.15,12.98827417]
[1724900285700,15.22471483,144.21,144.2,12.98827417]
[1724900285892,15.22471483,144.26,144.2,12.98827417]
[1724900286096,4.17330158,144.26,144.21,1.38616562]
[1724900286310,8.92973275,144.27,144.24,12.98827417]
[1724900286701,6.1823,144.27,144.24,12.98827417]
[1724900286910,6.1823,144.27,144.21,1.38578113]
[1724900287115,13.1137,144.27,144.16,22.0516]
[1724900287314,6.9319,144.26,144.16,15.417]
[1724900287530,13.1138,144.27,144.21,12.98827417]
[1724900287729,6.1823,144.27,144.21,12.98827417]
[1724900288335,20.0,144.26,144.21,12.98827417]
[1724900288733,0.12549,144.25,144.21,12.98827417]
[1724900288933,0.25098,144.25,144.21,12.98827417]
[1724900290118,6.1823,144.27,144.23,12.98827417]
[1724900290818,6.1823,144.27,144.2,51.95309668]
[1724900291120,6.1823,144.27,144.23,12.98827417]
[1724900291435,20.0,144.26,144.23,12.98827417]
[1724900292025,6.1225,144.3,144.25,12.98827417]
[1724900292437,403.087,144.34,144.27,12.98827417]
[1724900292628,6.5589,144.34,144.29,12.98827417]
[1724900293139,6.9267,144.37,144.29,12.98827417]
[1724900293508,396.1589,144.38,144.22,16.2174]
[1724900293509,396.1589,144.38,144.31,12.98827417]
[1724900293737,403.0851,144.38,144.31,12.98827417]
[1724900293915,6.9266,144.37,144.28,1.3858578]
[1724900294131,6.9266,144.37,144.3,12.98827417]
[1724900294523,19.91487417,144.37,144.28,12.98827417]